fUSD/lending_fUSD_20251011
["ID","MTS","AMOUNT","RATE_DAILY","PERIOD"]
[390896819,1760203298046,-500.0,0.00038356,30]
[390896820,1760203298084,-500.0,0.00038356,30]
[390896821,1760203298121,-500.0,0.00038356,30]
[390896822,1760203298159,-500.0,0.00038356,30]
[390896823,1760203298197,-6716.98,0.00038356,30]
[390896824,1760203298236,-500.0,0.00038356,30]
[390896825,1760203298280,-2577.58,0.00038356,30]
[390896826,1760203298318,-3269.71,0.00038356,30]
[390896827,1760203298355,-500.0,0.00038356,30]
[390896828,1760203298390,-500.0,0.00038356,30]
[390896829,1760203298427,-500.0,0.00038356,30]
[390896830,1760203298462,-500.0,0.00038356,30]
[390896831,1760203298500,-500.0,0.00038356,30]
[390896832,1760203298535,-500.0,0.00038356,30]
[390896833,1760203298570,-3527.2,0.00038356,30]
[390896834,1760203298605,-500.0,0.00038356,30]
[390896835,1760203298641,-500.0,0.00038356,30]
[390896836,1760203298679,-1126.69,0.00038356,30]
[390896837,1760203298716,-500.62272366,0.00038356,30]
[390896838,1760203298756,-500.0,0.00038356,30]
[390896839,1760203298794,-500.0,0.00038356,30]
[390896840,1760203298833,-2323.07,0.00038356,30]
[390896841,1760203298869,-500.0,0.00038356,30]
[390896842,1760203298906,-1436.38,0.00038356,30]
[390896843,1760203298942,-753.0,0.00038356,30]
[390896844,1760203298979,-500.0,0.00038356,30]
[390896845,1760203299019,-500.0,0.00038356,30]
[390896846,1760203299059,-2747.77,0.00038356,30]
[390896847,1760203299101,-10524.53,0.00038356,30]
[390896848,1760203299142,-500.0,0.00038356,30]
[390896849,1760203299180,-1362.54,0.00038356,30]
[390896850,1760203299218,-5659.62,0.00038356,30]
[390896851,1760203299259,-500.0,0.00038356,30]
[390896852,1760203299299,-1100.96,0.00038356,30]
[390896853,1760203299338,-500.0,0.00038356,30]
[390896854,1760203299377,-500.0,0.00038356,30]
[390896855,1760203299413,-500.0,0.00038356,30]
[390896856,1760203299447,-500.0,0.00038356,30]
[390896857,1760203299481,-500.0,0.00038356,30]
[390896858,1760203299514,-503.14308651,0.00038356,30]
[390896859,1760203299548,-7497.56,0.00038356,30]
[390896860,1760203299581,-500.0,0.00038356,30]
[390896861,1760203299615,-3670.54,0.00038356,30]
[390896862,1760203299646,-1122.79,0.00038356,30]
[390896863,1760203299677,-500.0,0.00038356,30]
[390896864,1760203299711,-3889.34,0.00038356,30]
[390896865,1760203299743,-500.0,0.00038356,30]
[390896866,1760203299776,-500.0,0.00038356,30]
[390896867,1760203299809,-500.0,0.00038356,30]
[390896868,1760203299840,-775.26,0.00038356,30]
[390896869,1760203299872,-500.0,0.00038356,30]
[390896870,1760203299905,-2083.66,0.00038356,30]
[390896871,1760203299939,-500.0,0.00038356,30]
[390896872,1760203299974,-500.0,0.00038356,30]
[390896873,1760203300011,-500.0,0.00038356,30]
[390896874,1760203300050,-501.10072356,0.00038356,30]
[390896875,1760203300087,-500.0,0.00038356,30]
[390896876,1760203300122,-500.0,0.00038356,30]
[390896877,1760203300156,-970.25,0.00038356,30]
[390896878,1760203300191,-500.0,0.00038356,30]
[390896879,1760203300228,-8047.59,0.00038356,30]
[390896880,1760203300266,-1288.69,0.00038356,30]
[390896881,1760203300304,-3746.63,0.00038356,30]
[390896882,1760203300339,-500.0,0.00038356,30]
[390896883,1760203300374,-4098.5,0.00038356,30]
[390896884,1760203300407,-500.0,0.00038356,30]
[390896885,1760203300440,-2440.01,0.00038356,30]
[390896886,1760203300474,-500.0,0.00038356,30]
[390896887,1760203300508,-3244.32,0.00038356,30]
[390896888,1760203300542,-500.0,0.00038356,30]
[390896889,1760203300579,-500.0,0.00038356,30]
[390896890,1760203300617,-500.0,0.00038356,30]
[390896891,1760203300657,-500.0,0.00038356,30]
[390896892,1760203300693,-500.0,0.00038356,30]
[390896893,1760203300730,-1233.75,0.00038356,30]
[390896894,1760203300765,-400.0,0.00038356,30]
[390896895,1760203300801,-500.0,0.00038356,30]
[390896896,1760203300838,-3905.79,0.00038356,30]
[390896897,1760203300873,-756.79,0.00038356,30]
[390896898,1760203300909,-500.0,0.00038356,30]
[390896899,1760203301322,-1713.15,0.00038356,30]
[390896900,1760203301364,-876.34,0.00038356,30]
[390896901,1760203301401,-2414.75,0.00038356,30]
[390896902,1760203301438,-3218.33,0.00038356,30]
[390896903,1760203301473,-500.87149502,0.00038356,30]
[390896904,1760203301507,-700.29,0.00038356,30]
[390896905,1760203301541,-500.0,0.00038356,30]
[390896906,1760203301575,-700.29,0.00038356,30]
[390896907,1760203301609,-500.0,0.00038356,30]
[390896908,1760203301643,-5091.98,0.00038356,30]
[390896909,1760203301675,-700.29,0.00038356,30]
[390896910,1760203301708,-500.0,0.00038356,30]
[390896911,1760203301743,-700.29,0.00038356,30]
[390896912,1760203301780,-500.0,0.00038356,30]
[390896913,1760203301818,-700.29,0.00038356,30]
[390896914,1760203301853,-700.29,0.00038356,30]
[390896915,1760203301886,-700.29,0.00038356,30]
[390896916,1760203301920,-700.29,0.00038356,30]
[390896917,1760203301958,-700.29,0.00038356,30]
[390896918,1760203301999,-700.29,0.00038356,30]
[390896919,1760203302043,-700.29,0.00038356,30]
[390896920,1760203302082,-3127.56,0.00038356,30]
[390896921,1760203302122,-700.29,0.00038356,30]
[390896922,1760203302162,-573.74,0.00038356,30]
[390896923,1760203302200,-500.0,0.00038356,30]
[390896924,1760203302238,-500.0,0.00038356,30]
[390896925,1760203302280,-700.29,0.00038356,30]
[390896926,1760203302317,-700.29,0.00038356,30]
[390896927,1760203302352,-930.73,0.00038356,30]
[390896928,1760203302387,-700.29,0.00038356,30]
[390896929,1760203302423,-500.0,0.00038356,30]
[390896930,1760203302461,-700.29,0.00038356,30]
[390896931,1760203302502,-700.29,0.00038356,30]
[390896932,1760203302537,-502.27644199,0.00038356,30]
[390896933,1760203302571,-700.29,0.00038356,30]
[390896934,1760203302603,-700.29,0.00038356,30]
[390896935,1760203302634,-722.0,0.00038356,30]
[390896936,1760203302666,-700.29,0.00038356,30]
[390896937,1760203302698,-700.29,0.00038356,30]
[390896938,1760203302730,-700.29,0.00038356,30]
[390896939,1760203302763,-700.29,0.00038356,30]
[390896940,1760203302796,-500.0,0.00038356,30]
[390896941,1760203302830,-700.48,0.00038356,30]
[390896942,1760203302864,-5335.86,0.00038356,30]
[390896943,1760203302899,-40293.96,0.00038356,30]
[390896944,1760203302933,-906.76,0.00038356,30]
[390896945,1760203302968,-745.55,0.00038356,30]
[390896946,1760203303002,-500.0,0.00038356,30]
[390896947,1760203303039,-500.0,0.00038356,30]
[390896948,1760203303074,-500.0,0.00038356,30]
[390896949,1760203303109,-500.0,0.00038356,30]
[390896950,1760203303145,-500.0,0.00038356,30]
[390896951,1760203303181,-5822.24,0.00038356,30]
[390896952,1760203303215,-735.3,0.00038356,30]
[390896953,1760203303247,-500.0,0.00038356,30]
[390896954,1760203303281,-500.0,0.00038356,30]
[390896955,1760203303315,-500.0,0.00038356,30]
[390896956,1760203303348,-500.0,0.00038356,30]
[390896957,1760203303380,-500.0,0.00038356,30]
[390896958,1760203303412,-1522.85,0.00038356,30]
[390896959,1760203303444,-500.0,0.00038356,30]
[390896960,1760203303478,-500.0,0.00038356,30]
[390896961,1760203303510,-500.0,0.00038356,30]
[390896962,1760203303541,-2891.48,0.00038356,30]
[390896963,1760203303573,-2619.35,0.00038356,30]
[390896964,1760203303605,-500.0,0.00038356,30]
[390896965,1760203303636,-500.0,0.00038356,30]
[390896966,1760203303669,-4158.38,0.00038356,30]
[390896967,1760203303702,-1517.07,0.00038356,30]
[390896968,1760203303737,-500.0,0.00038356,30]
[390896969,1760203303773,-1447.07,0.00038356,30]
[390896970,1760203303937,-2336.66,0.00038356,30]
[390896971,1760203303973,-589.48,0.00038356,30]
[390896972,1760203304008,-641.24,0.00038356,30]
[390896973,1760203304044,-500.0,0.00038356,30]
[390896974,1760203304078,-4078.14,0.00038356,30]
[390896975,1760203304111,-5774.78,0.00038356,30]
[390896976,1760203304145,-500.0,0.00038356,30]
[390896977,1760203304178,-12099.89,0.00038356,30]
[390896978,1760203304211,-506.83,0.00038356,30]
[390896979,1760203304250,-1190.3,0.00038356,30]
[390896980,1760203304289,-5035.49,0.00038356,30]
[390896981,1760203304326,-500.0,0.00038356,30]
[390896982,1760203304364,-2184.41,0.00038356,30]
[390896983,1760203304399,-500.0,0.00038356,30]
[390896984,1760203304432,-3514.55,0.00038356,30]
[390896985,1760203304465,-500.0,0.00038356,30]
[390896986,1760203304498,-500.0,0.00038356,30]
[390896987,1760203304533,-500.0,0.00038356,30]
[390896988,1760203304568,-2458.73,0.00038356,30]
[390896989,1760203304603,-1070.35,0.00038356,30]
[390896990,1760203304637,-500.0,0.00038356,30]
[390896991,1760203304670,-500.0,0.00038356,30]
[390896992,1760203304703,-7330.24,0.00038356,30]
[390896993,1760203304736,-500.0,0.00038356,30]
[390896994,1760203304772,-47265.97,0.00038356,30]
[390896995,1760203304806,-3405.9,0.00038356,30]
[390896996,1760203304839,-12774.96,0.00038356,30]
[390896997,1760203304872,-3226.87,0.00038356,30]
[390896998,1760203304907,-3780.45,0.00038356,30]
[390896999,1760203304943,-3193.62,0.00038356,30]
[390897000,1760203304979,-3391.54,0.00038356,30]
[390897001,1760203305015,-500.0,0.00038356,30]
[390897002,1760203305049,-500.0,0.00038356,30]
[390897003,1760203305082,-500.0,0.00038356,30]
[390897004,1760203305115,-2420.71,0.00038356,30]
[390897005,1760203305147,-1058.2,0.00038356,30]
[390897006,1760203305179,-1167.73,0.00038356,30]
[390897007,1760203305212,-500.0,0.00038356,30]
[390897008,1760203305245,-500.0,0.00038356,30]
[390897009,1760203305281,-500.0,0.00038356,30]
[390897010,1760203305315,-5325.52,0.00038356,30]
[390897011,1760203305352,-3140.59,0.00038356,30]
[390897012,1760203305385,-2522.71,0.00038356,30]
[390897013,1760203305418,-1198.5,0.00038356,30]
[390897014,1760203305451,-500.0,0.00038356,30]
[390897015,1760203305483,-500.0,0.00038356,30]
[390897016,1760203305516,-500.0,0.00038356,30]
[390897017,1760203305549,-500.0,0.00038356,30]
[390897018,1760203305580,-1075.36,0.00038356,30]
[390897019,1760203305614,-3964.15,0.00038356,30]
[390897020,1760203305645,-850.06,0.00038356,30]
[390897021,1760203305678,-3828.32,0.00038356,30]
[390897022,1760203305710,-500.0,0.00038356,30]
[390897023,1760203305742,-824.5,0.00038356,30]
[390897024,1760203305775,-500.0,0.00038356,30]
[390897025,1760203305808,-2869.64,0.00038356,30]
[390897026,1760203305844,-500.0,0.00038356,30]
[390897027,1760203305877,-500.0,0.00038356,30]
[390897028,1760203305910,-5520.77,0.00038356,30]
[390897029,1760203305943,-500.0,0.00038356,30]
[390897031,1760203305979,-629.96,0.00038356,30]
[390897032,1760203306014,-500.0,0.00038356,30]
[390897033,1760203306048,-500.0,0.00038356,30]
[390897034,1760203306084,-1456.36,0.00038356,30]
[390897035,1760203306123,-1456.36,0.00038356,30]
[390897036,1760203306158,-1456.36,0.00038356,30]
[390897037,1760203306192,-1456.36,0.00038356,30]
[390897038,1760203306229,-1456.36,0.00038356,30]
[390897039,1760203306265,-1456.36,0.00038356,30]
[390897040,1760203306303,-500.0,0.00038356,30]
[390897041,1760203306342,-500.0,0.00038356,30]
[390897042,1760203306379,-1456.36,0.00038356,30]
[390897044,1760203306414,-3195.53,0.00038356,30]
[390897045,1760203306449,-1456.36,0.00038356,30]
[390897046,1760203306484,-1456.36,0.00038356,30]
[390897047,1760203306521,-1456.36,0.00038356,30]
[390897048,1760203306555,-1456.36,0.00038356,30]
[390897049,1760203306597,-500.0,0.00038356,30]
[390897050,1760203306640,-1456.36,0.00038356,30]
[390897051,1760203306676,-500.0,0.00038356,30]
[390897054,1760203306714,-3677.93,0.00038356,30]
[390897055,1760203306755,-1456.36,0.00038356,30]
[390897056,1760203306789,-741.1,0.00038356,30]
[390897058,1760203306824,-500.0,0.00038356,30]
[390897059,1760203306857,-1456.36,0.00038356,30]
[390897060,1760203306890,-1009.7,0.00038356,30]
[390897061,1760203306924,-1456.36,0.00038356,30]
[390897062,1760203306957,-1456.36,0.00038356,30]
[390897063,1760203306995,-1456.36,0.00038356,30]
[390897064,1760203307033,-5975.41,0.00038356,30]
[390897065,1760203307069,-9002.61,0.00038356,30]
[390897066,1760203307106,-1456.36,0.00038356,30]
[390897067,1760203307142,-1456.36,0.00038356,30]
[390897068,1760203307178,-1456.36,0.00038356,30]
[390897069,1760203307213,-1456.36,0.00038356,30]
[390897071,1760203307249,-1456.36,0.00038356,30]
[390897072,1760203307284,-500.0,0.00038356,30]
[390897073,1760203307319,-1456.36,0.00038356,30]
[390897074,1760203307353,-1456.36,0.00038356,30]
[390897075,1760203307387,-500.0,0.00038356,30]
[390897076,1760203307420,-3147.81,0.00038356,30]
[390897077,1760203307453,-500.0,0.00038356,30]
[390897078,1760203307485,-500.0,0.00038356,30]
[390897079,1760203307518,-500.0,0.00038356,30]
[390897080,1760203307552,-566.72,0.00038356,30]
[390897081,1760203307760,-1895.39,0.00038356,30]
[390897082,1760203307798,-936.88,0.00038356,30]
[390897083,1760203307834,-500.0,0.00038356,30]
[390897085,1760203307870,-500.0,0.00038356,30]
[390897086,1760203307920,-500.0,0.00038356,30]
[390897087,1760203307960,-500.0,0.00038356,30]
[390897088,1760203307999,-8140.74,0.00038356,30]
[390897089,1760203308038,-1075.12,0.00038356,30]
[390897090,1760203308076,-3804.29,0.00038356,30]
[390897091,1760203308113,-500.0,0.00038356,30]
[390897092,1760203308149,-755.75,0.00038356,30]
[390897093,1760203308186,-828.64,0.00038356,30]
[390897094,1760203308223,-500.0,0.00038356,30]
[390897095,1760203308263,-500.0,0.00038356,30]
[390897096,1760203308307,-1047.72,0.00038356,30]
[390897097,1760203308347,-3779.67,0.00038356,30]
[390897098,1760203308383,-500.0,0.00038356,30]
[390897099,1760203308417,-878.66,0.00038356,30]
[390897100,1760203308451,-2646.76,0.00038356,30]
[390897101,1760203308485,-705.12,0.00038356,30]
[390897102,1760203308518,-500.0,0.00038356,30]
[390897103,1760203308550,-4087.39,0.00038356,30]
[390897104,1760203308583,-9151.03,0.00038356,30]
[390897105,1760203308617,-24950.3,0.00038356,30]
[390897106,1760203308649,-500.0,0.00038356,30]
[390897107,1760203308682,-500.0,0.00038356,30]
[390897108,1760203308715,-1433.89,0.00038356,30]
[390897109,1760203308750,-500.0,0.00038356,30]
[390897110,1760203308785,-706.73,0.00038356,30]
[390897111,1760203308818,-5474.98,0.00038356,30]
[390897112,1760203308852,-500.0,0.00038356,30]
[390897113,1760203308885,-500.0,0.00038356,30]
[390897114,1760203308920,-5182.64,0.00038356,30]
[390897115,1760203308958,-6404.36,0.00038356,30]
[390897116,1760203308996,-500.0,0.00038356,30]
[390897117,1760203309032,-4280.62,0.00038356,30]
[390897118,1760203309066,-500.0,0.00038356,30]
[390897119,1760203309099,-3627.36,0.00038356,30]
[390897120,1760203309133,-1426.33,0.00038356,30]
[390897121,1760203309170,-500.0,0.00038356,30]
[390897122,1760203309205,-1292.25,0.00038356,30]
[390897123,1760203309241,-500.0,0.00038356,30]
[390897124,1760203309280,-2443.88,0.00038356,30]
[390897125,1760203309320,-500.0,0.00038356,30]
[390897126,1760203309358,-1247.63,0.00038356,30]
[390897127,1760203309395,-500.0,0.00038356,30]
[390897128,1760203309431,-8170.34,0.00038356,30]
[390897129,1760203309464,-500.0,0.00038356,30]
[390897130,1760203309496,-760.27,0.00038356,30]
[390897131,1760203309528,-585.49,0.00038356,30]
[390897132,1760203309560,-500.0,0.00038356,30]
[390897133,1760203309592,-687.56,0.00038356,30]
[390897134,1760203309624,-1081.51,0.00038356,30]
[390897135,1760203309656,-3515.78,0.00038356,30]
[390897136,1760203309688,-3674.62,0.00038356,30]
[390897137,1760203309720,-500.0,0.00038356,30]
[390897138,1760203309755,-1217.65,0.00038356,30]
[390897139,1760203309789,-701.89,0.00038356,30]
[390897140,1760203309823,-500.0,0.00038356,30]
[390897141,1760203309858,-1458.13,0.00038356,30]
[390897142,1760203309890,-4673.91,0.00038356,30]
[390897143,1760203309922,-500.0,0.00038356,30]
[390897144,1760203309955,-14707.79,0.00038356,30]
[390897145,1760203309988,-200.0,0.00038356,30]
[390897146,1760203310022,-3718.96,0.00038356,30]
[390897147,1760203310055,-500.0,0.00038356,30]
[390897148,1760203310088,-808.39,0.00038356,30]
[390897149,1760203310121,-618.81306668,0.00038356,30]
[390897150,1760203310159,-500.0,0.00038356,30]
[390897151,1760203310198,-4378.51,0.00038356,30]
[390897152,1760203310234,-500.0,0.00038356,30]
[390897153,1760203310269,-309.37656373,0.00038356,30]
[390897154,1760203310304,-722.4,0.00038356,30]
[390897155,1760203310338,-8277.28,0.00038356,30]
[390897156,1760203310374,-5250.65,0.00038356,30]
[390897157,1760203310407,-500.0,0.00038356,30]
[390897158,1760203310439,-500.0,0.00038356,30]
[390897159,1760203310470,-2411.84,0.00038356,30]
[390897160,1760203310504,-669.8,0.00038356,30]
[390897161,1760203310537,-500.0,0.00038356,30]
[390897162,1760203310570,-5356.32,0.00038356,30]
[390897163,1760203310606,-5748.02,0.00038356,30]
[390897164,1760203310640,-500.0,0.00038356,90]
[390897165,1760203310674,-500.0,0.00038356,30]
[390897166,1760203310706,-1150.33,0.00038356,30]
[390897167,1760203310738,-500.0,0.00038356,30]
[390897168,1760203310771,-500.0,0.00038356,30]
[390897169,1760203310803,-2923.54,0.00038356,30]
[390897170,1760203310835,-953.38,0.00038356,30]
[390897171,1760203311184,-4213.73,0.00038356,30]
[390897172,1760203311296,-5407.79,0.00038356,30]
[390897173,1760203311333,-532.93,0.00038356,30]
[390897174,1760203311368,-500.0,0.00038356,30]
[390897175,1760203311402,-4618.58,0.00038356,30]
[390897176,1760203311435,-396.67770491,0.00038356,30]
[390897177,1760203311468,-500.0,0.00038356,30]
[390897178,1760203311501,-653.41,0.00038356,30]
[390897179,1760203311536,-500.0,0.00038356,30]
[390897180,1760203311569,-4191.48,0.00038356,30]
[390897181,1760203311600,-500.0,0.00038356,30]
[390897182,1760203311633,-1000.0,0.00038356,120]
[390897183,1760203311664,-500.0,0.00038356,30]
[390897184,1760203311696,-500.0,0.00038356,30]
[390897185,1760203311730,-915.03,0.00038356,30]
[390897186,1760203311764,-500.0,0.00038356,30]
[390897187,1760203311799,-500.0,0.00038356,30]
[390897188,1760203311832,-500.0,0.00038356,30]
[390897189,1760203311863,-500.0,0.00038356,30]
[390897190,1760203311896,-500.0,0.00038356,30]
[390897191,1760203311929,-500.0,0.00038356,30]
[390897192,1760203311963,-500.0,0.00038356,30]
[390897193,1760203311998,-2354.92,0.00038356,30]
[390897194,1760203312033,-5563.83,0.00038356,30]
[390897195,1760203312067,-500.0,0.00038356,30]
[390897196,1760203312100,-500.0,0.00038356,30]
[390897197,1760203312133,-500.0,0.00038356,30]
[390897198,1760203312165,-500.0,0.00038356,30]
[390897199,1760203312198,-500.0,0.00038356,30]
[390897200,1760203312232,-500.0,0.00038356,30]
[390897201,1760203312267,-12922.6,0.00038356,30]
[390897202,1760203312301,-500.0,0.00038356,30]
[390897203,1760203312335,-500.0,0.00038356,30]
[390897204,1760203312368,-500.0,0.00038356,30]
[390897205,1760203312400,-500.0,0.00038356,30]
[390897206,1760203312432,-500.0,0.00038356,30]
[390897207,1760203312464,-2951.46,0.00038356,30]
[390897208,1760203312496,-500.0,0.00038356,30]
[390897209,1760203312528,-500.0,0.00038356,30]
[390897210,1760203312559,-500.0,0.00038356,30]
[390897211,1760203312592,-500.0,0.00038356,30]
[390897212,1760203312623,-690.94,0.00038356,30]
[390897213,1760203312655,-500.0,0.00038356,30]
[390897214,1760203312687,-500.0,0.00038356,30]
[390897215,1760203312719,-597.62,0.00038356,30]
[390897216,1760203312751,-500.0,0.00038356,30]
[390897217,1760203312782,-500.0,0.00038356,30]
[390897218,1760203312813,-477.37172989,0.00038356,30]
[390897219,1760203312845,-6957.17,0.00038356,30]
[390897220,1760203312876,-6470.11,0.00038356,30]
[390897221,1760203312908,-1100.37,0.00038356,30]
[390897222,1760203312942,-500.0,0.00038356,30]
[390897223,1760203312976,-822.68,0.00038356,30]
[390897224,1760203313009,-1139.69,0.00038356,30]
[390897225,1760203313043,-1277.03,0.00038356,30]
[390897226,1760203313076,-500.0,0.00038356,30]
[390897227,1760203313108,-500.0,0.00038356,30]
[390897228,1760203313142,-4064.21,0.00038356,30]
[390897229,1760203313180,-636.25,0.00038356,30]
[390897230,1760203313214,-500.0,0.00038356,30]
[390897231,1760203313248,-3065.83,0.00038356,30]
[390897232,1760203313287,-753.49,0.00038356,30]
[390897233,1760203313324,-500.0,0.00038356,30]
[390897234,1760203313361,-931.73,0.00038356,30]
[390897235,1760203313397,-3015.08,0.00038356,30]
[390897236,1760203313432,-500.0,0.00038356,30]
[390897237,1760203313466,-3639.55,0.00038356,30]
[390897238,1760203313500,-2689.71,0.00038356,30]
[390897239,1760203313537,-500.0,0.00038356,30]
[390897240,1760203313571,-1027.09,0.00038356,30]
[390897241,1760203313607,-4123.31,0.00038356,30]
[390897242,1760203313640,-500.0,0.00038356,30]
[390897243,1760203313860,-547.8,0.00038356,30]
[390897244,1760203313897,-2212.04,0.00038356,30]
[390897245,1760203313932,-500.0,0.00038356,30]
[390897246,1760203313969,-39391.35,0.00038356,30]
[390897247,1760203314004,-500.0,0.00038356,30]
[390897248,1760203314040,-500.0,0.00038356,30]
[390897249,1760203314075,-856.49,0.00038356,30]
[390897250,1760203314109,-500.0,0.00038356,30]
[390897251,1760203314145,-500.0,0.00038356,30]
[390897252,1760203314182,-500.0,0.00038356,30]
[390897253,1760203314219,-500.0,0.00038356,30]
[390897254,1760203314264,-1106.44,0.00038356,30]
[390897255,1760203314309,-1106.44,0.00038356,30]
[390897256,1760203314348,-1106.44,0.00038356,30]
[390897257,1760203314386,-500.0,0.00038356,30]
[390897258,1760203314421,-1106.44,0.00038356,30]
[390897259,1760203314456,-1106.44,0.00038356,30]
[390897260,1760203314491,-1106.44,0.00038356,30]
[390897262,1760203314526,-500.0,0.00038356,30]
[390897263,1760203314560,-1106.44,0.00038356,30]
[390897264,1760203314592,-1106.44,0.00038356,30]
[390897265,1760203314628,-1106.44,0.00038356,30]
[390897266,1760203314661,-1106.44,0.00038356,30]
[390897267,1760203314694,-1106.44,0.00038356,30]
[390897268,1760203314728,-563.6,0.00038356,30]
[390897269,1760203314762,-1106.44,0.00038356,30]
[390897270,1760203314795,-2826.15,0.00038356,30]
[390897271,1760203314828,-563.81391942,0.00038356,30]
[390897272,1760203314859,-500.6653138,0.00038356,30]
[390897273,1760203314892,-1106.44,0.00038356,30]
[390897274,1760203314925,-564.71,0.00038356,30]
[390897275,1760203314961,-660.88,0.00038356,30]
[390897276,1760203314995,-1106.44,0.00038356,30]
[390897277,1760203315030,-2388.49,0.00038356,30]
[390897278,1760203315063,-564.71,0.00038356,30]
[390897279,1760203315097,-1106.44,0.00038356,30]
[390897280,1760203315132,-1106.44,0.00038356,30]
[390897281,1760203315168,-564.71,0.00038356,30]
[390897282,1760203315204,-3862.06,0.00038356,30]
[390897283,1760203315239,-1106.44,0.00038356,30]
[390897284,1760203315276,-564.71,0.00038356,30]
[390897285,1760203315309,-1106.44,0.00038356,30]
[390897286,1760203315357,-564.71,0.00038356,30]
[390897287,1760203315390,-1106.44,0.00038356,30]
[390897288,1760203315423,-500.0,0.00038356,30]
[390897289,1760203315456,-564.71,0.00038356,30]
[390897290,1760203315490,-1106.44,0.00038356,30]
[390897291,1760203315522,-505.70356905,0.00038356,30]
[390897292,1760203315555,-564.71,0.00038356,30]
[390897293,1760203315588,-500.0,0.00038356,30]
[390897294,1760203315622,-1106.44,0.00038356,30]
[390897295,1760203315656,-564.71,0.00038356,30]
[390897296,1760203315694,-500.0,0.00038356,30]
[390897297,1760203315731,-564.71,0.00038356,30]
[390897298,1760203315767,-500.0,0.00038356,30]
[390897299,1760203315802,-564.71,0.00038356,30]
[390897300,1760203315836,-1106.44,0.00038356,30]
[390897301,1760203315870,-564.71,0.00038356,30]
[390897302,1760203315914,-1106.44,0.00038356,30]
[390897303,1760203315952,-500.0,0.00038356,30]
[390897304,1760203315991,-564.71,0.00038356,30]
[390897305,1760203316032,-1106.66,0.00038356,30]
[390897306,1760203316069,-564.71,0.00038356,30]
[390897307,1760203316108,-1090.2,0.00038356,30]
[390897308,1760203316147,-322.15430455,0.00038356,30]
[390897309,1760203316187,-564.71,0.00038356,30]
[390897310,1760203316228,-1687.5,0.00038356,120]
[390897311,1760203316265,-564.71,0.00038356,30]
[390897312,1760203316305,-500.0,0.00038356,30]
[390897313,1760203316342,-564.71,0.00038356,30]
[390897314,1760203316378,-564.71,0.00038356,30]
[390897315,1760203316413,-564.71,0.00038356,30]
[390897316,1760203316448,-500.0,0.00038356,30]
[390897317,1760203316481,-564.71,0.00038356,30]
[390897318,1760203316515,-500.0,0.00038356,30]
[390897319,1760203316549,-564.71,0.00038356,30]
[390897320,1760203316583,-564.71,0.00038356,30]
[390897321,1760203316618,-564.71,0.00038356,30]
[390897322,1760203316654,-564.71,0.00038356,30]
[390897323,1760203316692,-1000.0,0.00038356,30]
[390897324,1760203316727,-500.0,0.00038356,30]
[390897325,1760203316763,-2665.8,0.00038356,30]
[390897326,1760203316802,-500.0,0.00038356,30]